[Event "*** SCC Grand Prix: Titled Tuesday Blitz"]
[Site "Chess.com"]
[Date "2020.06.09"]
[Round "6"]
[White "YaWaleriy"]
[Black "PauloFanha"]
[Result "1-0"]
[WhiteElo "2215"]
[BlackElo "1993"]
[TimeControl "180+1"]
[EndTime "10:06:23 PDT"]
[Termination "YaWaleriy won on time"]

1. d4 {[%clk 0:03:00.9]} 1... d5 {[%clk 0:03:00]} 2. Nf3 {[%clk 0:03:00.2]} 2...
e6 {[%clk 0:02:59.1]} 3. c4 {[%clk 0:03:00.1]} 3... c6 {[%clk 0:02:57.2]} 4. Qc2
{[%clk 0:03:00.1]} 4... Nf6 {[%clk 0:02:54.3]} 5. e3 {[%clk 0:02:58.4]} 5...
Nbd7 {[%clk 0:02:50]} 6. Nc3 {[%clk 0:02:56.6]} 6... Bb4 {[%clk 0:02:47.8]} 7.
Bd3 {[%clk 0:02:56]} 7... dxc4 {[%clk 0:02:44.9]} 8. Bxc4 {[%clk 0:02:55.4]}
8... b5 {[%clk 0:02:42.9]} 9. Bb3 {[%clk 0:02:55.4]} 9... a5 {[%clk 0:02:37.1]}
10. a3 {[%clk 0:02:53.6]} 10... Be7 {[%clk 0:02:30.9]} 11. O-O {[%clk
0:02:52.7]} 11... O-O {[%clk 0:02:27.9]} 12. e4 {[%clk 0:02:50.4]} 12... Ba6
{[%clk 0:02:19.4]} 13. Re1 {[%clk 0:02:46.4]} 13... c5 {[%clk 0:02:15.4]} 14. e5
{[%clk 0:02:36.7]} 14... Ne8 {[%clk 0:02:10.3]} 15. d5 {[%clk 0:02:36.1]} 15...
exd5 {[%clk 0:02:04.8]} 16. Bxd5 {[%clk 0:02:34.2]} 16... Rc8 {[%clk 0:01:52.8]}
17. e6 {[%clk 0:02:27.9]} 17... fxe6 {[%clk 0:01:47.6]} 18. Bxe6+ {[%clk
0:02:27.7]} 18... Kh8 {[%clk 0:01:45.8]} 19. Rd1 {[%clk 0:02:14.6]} 19... Bd6
{[%clk 0:01:33.5]} 20. Ne4 {[%clk 0:02:06.8]} 20... Qe7 {[%clk 0:01:19.7]} 21.
Neg5 {[%clk 0:01:35.8]} 21... Nef6 {[%clk 0:00:59]} 22. Bxd7 {[%clk 0:01:13.8]}
22... Qxd7 {[%clk 0:00:51.2]} 23. Bf4 {[%clk 0:01:14.2]} 23... Rc6 {[%clk
0:00:48.5]} 24. Ne5 {[%clk 0:01:13.8]} 24... Qe8 {[%clk 0:00:40]} 25. Nef7+
{[%clk 0:00:58.1]} 25... Rxf7 {[%clk 0:00:37.4]} 26. Nxf7+ {[%clk 0:00:57.7]}
26... Qxf7 {[%clk 0:00:36]} 27. Rxd6 {[%clk 0:00:55.3]} 27... Rxd6 {[%clk
0:00:21.6]} 28. Bxd6 {[%clk 0:00:55]} 28... h6 {[%clk 0:00:15.1]} 29. Re1 {[%clk
0:00:53.4]} 29... Ng4 {[%clk 0:00:12.9]} 30. Qxc5 {[%clk 0:00:50.1]} 30... Qf6
{[%clk 0:00:07.9]} 31. h3 {[%clk 0:00:46.7]} 31... Nxf2 {[%clk 0:00:04]} 32.
Qxf2 {[%clk 0:00:40.8]} 32... Qxd6 {[%clk 0:00:02.2]} 33. Re8+ {[%clk 0:00:40]}
1-0

[Event "*** SCC Grand Prix: Titled Tuesday Blitz"]
[Site "Chess.com"]
[Date "2020.06.09"]
[Round "6"]
[White "emiliocordova"]
[Black "giantslayer83"]
[Result "0-1"]
[WhiteElo "2841"]
[BlackElo "2737"]
[TimeControl "180+1"]
[EndTime "10:06:24 PDT"]
[Termination "giantslayer83 won by resignation"]

1. d4 {[%clk 0:03:00.9]} 1... Nf6 {[%clk 0:02:59.6]} 2. Nf3 {[%clk 0:03:01.8]}
2... e6 {[%clk 0:02:59]} 3. g3 {[%clk 0:03:01.7]} 3... b6 {[%clk 0:02:57.9]} 4.
Bg2 {[%clk 0:03:01.4]} 4... Bb7 {[%clk 0:02:58.3]} 5. O-O {[%clk 0:03:01.5]}
5... c5 {[%clk 0:02:58.3]} 6. c4 {[%clk 0:02:59.9]} 6... cxd4 {[%clk 0:02:55.3]}
7. Qxd4 {[%clk 0:03:00.8]} 7... Be7 {[%clk 0:02:47.7]} 8. Nc3 {[%clk 0:02:59.8]}
8... O-O {[%clk 0:02:46.8]} 9. Rd1 {[%clk 0:02:59.3]} 9... d5 {[%clk 0:02:25.5]}
10. Qf4 {[%clk 0:02:33.3]} 10... Nbd7 {[%clk 0:02:12.8]} 11. cxd5 {[%clk
0:02:12.9]} 11... Nxd5 {[%clk 0:02:10]} 12. Nxd5 {[%clk 0:02:12.4]} 12... exd5
{[%clk 0:02:03.7]} 13. Nd4 {[%clk 0:02:10.7]} 13... Bf6 {[%clk 0:02:02.5]} 14.
b3 {[%clk 0:02:03.6]} 14... Re8 {[%clk 0:02:01.2]} 15. e3 {[%clk 0:02:01.8]}
15... Nc5 {[%clk 0:01:56.7]} 16. Bb2 {[%clk 0:02:01.3]} 16... Ne6 {[%clk
0:01:54.9]} 17. Qg4 {[%clk 0:01:59.4]} 17... Nc5 {[%clk 0:01:52.1]} 18. h4
{[%clk 0:01:58.5]} 18... Ne4 {[%clk 0:01:51.2]} 19. Rac1 {[%clk 0:01:57.1]}
19... Rc8 {[%clk 0:01:42.6]} 20. Bh3 {[%clk 0:01:53.5]} 20... g6 {[%clk
0:01:36.5]} 21. Qf4 {[%clk 0:01:38.6]} 21... Be5 {[%clk 0:01:25.1]} 22. Qf3
{[%clk 0:01:24.5]} 22... Rc5 {[%clk 0:01:12.1]} 23. b4 {[%clk 0:01:22]} 23...
Rc4 {[%clk 0:00:42.9]} 24. a3 {[%clk 0:00:44.8]} 24... Qf6 {[%clk 0:00:23.5]}
25. Qxf6 {[%clk 0:00:42.2]} 25... Bxf6 {[%clk 0:00:24.4]} 26. Bf1 {[%clk
0:00:41.5]} 26... Rxc1 {[%clk 0:00:24.6]} 27. Rxc1 {[%clk 0:00:42.4]} 27... Nd2
{[%clk 0:00:22.6]} 28. Rc7 {[%clk 0:00:37.1]} 28... Re7 {[%clk 0:00:22.1]} 29.
Rc2 {[%clk 0:00:30.5]} 29... Bxd4 {[%clk 0:00:15.7]} 30. Bxd4 {[%clk 0:00:28.8]}
30... Nf3+ {[%clk 0:00:15.4]} 31. Kg2 {[%clk 0:00:25.7]} 31... Ne1+ {[%clk
0:00:15]} 0-1

[Event "*** SCC Grand Prix: Titled Tuesday Blitz"]
[Site "Chess.com"]
[Date "2020.06.09"]
[Round "6"]
[White "Love_craft"]
[Black "vitnik2020"]
[Result "1-0"]
[WhiteElo "2439"]
[BlackElo "2302"]
[TimeControl "180+1"]
[EndTime "10:06:24 PDT"]
[Termination "Love_craft won on time"]

1. Nf3 {[%clk 0:03:00.9]} 1... d5 {[%clk 0:02:59.3]} 2. g3 {[%clk 0:02:59.3]}
2... c6 {[%clk 0:02:57.9]} 3. Bg2 {[%clk 0:02:59.6]} 3... Bg4 {[%clk 0:02:57.4]}
4. O-O {[%clk 0:02:59.1]} 4... Nd7 {[%clk 0:02:57]} 5. d3 {[%clk 0:02:59.2]}
5... e6 {[%clk 0:02:55.6]} 6. Nbd2 {[%clk 0:02:59.4]} 6... Ngf6 {[%clk
0:02:55.1]} 7. b3 {[%clk 0:02:54.1]} 7... Be7 {[%clk 0:02:49.2]} 8. Bb2 {[%clk
0:02:53.9]} 8... O-O {[%clk 0:02:48.6]} 9. e4 {[%clk 0:02:54.1]} 9... a5 {[%clk
0:02:39.4]} 10. a4 {[%clk 0:02:53.3]} 10... Nc5 {[%clk 0:02:37.1]} 11. e5 {[%clk
0:02:52.3]} 11... Nfd7 {[%clk 0:02:36]} 12. Qe2 {[%clk 0:02:24.5]} 12... Na6
{[%clk 0:02:24.7]} 13. h3 {[%clk 0:02:16.9]} 13... Bh5 {[%clk 0:02:22.1]} 14. g4
{[%clk 0:02:16.7]} 14... Bg6 {[%clk 0:02:21.3]} 15. Nh2 {[%clk 0:02:04.6]} 15...
Nb4 {[%clk 0:02:07.8]} 16. Rac1 {[%clk 0:02:00.6]} 16... f6 {[%clk 0:01:50.1]}
17. exf6 {[%clk 0:01:52.3]} 17... Bxf6 {[%clk 0:01:49.7]} 18. Qxe6+ {[%clk
0:01:43]} 18... Kh8 {[%clk 0:01:36.7]} 19. Bxf6 {[%clk 0:01:28.5]} 19... Rxf6
{[%clk 0:01:23.3]} 20. Qe2 {[%clk 0:01:27.9]} 20... Qf8 {[%clk 0:01:13.1]} 21.
Ndf3 {[%clk 0:01:20.1]} 21... Re8 {[%clk 0:01:00.3]} 22. Qd2 {[%clk 0:01:19.9]}
22... Rfe6 {[%clk 0:00:46]} 23. Rce1 {[%clk 0:01:18.2]} 23... Qc5 {[%clk
0:00:39.9]} 24. Rxe6 {[%clk 0:01:16.3]} 24... Rxe6 {[%clk 0:00:39.2]} 25. Re1
{[%clk 0:01:15.7]} 25... Rxe1+ {[%clk 0:00:30.6]} 26. Nxe1 {[%clk 0:01:16.6]}
26... h6 {[%clk 0:00:19.2]} 27. Nhf3 {[%clk 0:01:13]} 27... Kh7 {[%clk
0:00:11.8]} 28. Nh4 {[%clk 0:01:10.5]} 28... Bf7 {[%clk 0:00:09]} 29. d4 {[%clk
0:01:04.5]} 29... Qe7 {[%clk 0:00:07.9]} 30. Nf5 {[%clk 0:01:04]} 30... Qf6
{[%clk 0:00:07.4]} 31. c3 {[%clk 0:01:03.4]} 31... Na6 {[%clk 0:00:06.2]} 32.
Bf1 {[%clk 0:01:01.1]} 32... Bg6 {[%clk 0:00:04.9]} 33. Bd3 {[%clk 0:01:01.2]}
33... Nc7 {[%clk 0:00:04.2]} 34. Ng2 {[%clk 0:00:57.2]} 34... Ne6 {[%clk
0:00:03.7]} 35. Ngh4 {[%clk 0:00:53]} 35... Bxf5 {[%clk 0:00:01.3]} 36. Bxf5+
{[%clk 0:00:50.3]} 1-0

[Event "*** SCC Grand Prix: Titled Tuesday Blitz"]
[Site "Chess.com"]
[Date "2020.06.09"]
[Round "6"]
[White "awesomevishesh"]
[Black "TheBigBadChessDad"]
[Result "0-1"]
[WhiteElo "2406"]
[BlackElo "2265"]
[TimeControl "180+1"]
[EndTime "10:06:26 PDT"]
[Termination "TheBigBadChessDad won on time"]

1. e4 {[%clk 0:03:00.9]} 1... e5 {[%clk 0:02:59.8]} 2. Nf3 {[%clk 0:02:59.7]}
2... Nf6 {[%clk 0:02:59.8]} 3. Nxe5 {[%clk 0:02:53.5]} 3... d6 {[%clk
0:02:59.8]} 4. Nf3 {[%clk 0:02:53.1]} 4... Nxe4 {[%clk 0:03:00]} 5. d4 {[%clk
0:02:50.4]} 5... d5 {[%clk 0:02:59.8]} 6. c4 {[%clk 0:02:48]} 6... c6 {[%clk
0:02:58.8]} 7. Bd3 {[%clk 0:02:45.2]} 7... Bb4+ {[%clk 0:02:50.5]} 8. Nbd2
{[%clk 0:02:42.8]} 8... Nxd2 {[%clk 0:02:46.5]} 9. Bxd2 {[%clk 0:02:41.9]} 9...
Qe7+ {[%clk 0:02:43.8]} 10. Kf1 {[%clk 0:02:17]} 10... O-O {[%clk 0:02:10.3]}
11. Ng5 {[%clk 0:01:41.6]} 11... h6 {[%clk 0:02:01.6]} 12. Bxb4 {[%clk
0:01:09.3]} 12... Qxb4 {[%clk 0:01:58.1]} 13. Qh5 {[%clk 0:01:08.6]} 13... Nd7
{[%clk 0:01:08.7]} 14. Nf3 {[%clk 0:00:07.4]} 14... Nf6 {[%clk 0:01:01.5]} 15.
Qh4 {[%clk 0:00:06.7]} 15... dxc4 {[%clk 0:00:57.2]} 16. Be2 {[%clk 0:00:06]}
16... Qxb2 {[%clk 0:00:54.4]} 17. Re1 {[%clk 0:00:03.8]} 17... c3 {[%clk
0:00:47.5]} 18. Ne5 {[%clk 0:00:03.7]} 18... Bf5 {[%clk 0:00:33.3]} 19. Qf4
{[%clk 0:00:03.4]} 19... Bh7 {[%clk 0:00:32.4]} 20. h4 {[%clk 0:00:03.7]} 20...
c2 {[%clk 0:00:28.1]} 21. g4 {[%clk 0:00:03.8]} 21... Nd5 {[%clk 0:00:25.4]} 22.
Qd2 {[%clk 0:00:03.6]} 22... Qc3 {[%clk 0:00:21.3]} 23. Qxc3 {[%clk 0:00:02.3]}
23... Nxc3 {[%clk 0:00:22.2]} 24. Rc1 {[%clk 0:00:02.2]} 24... Nxa2 {[%clk
0:00:19.9]} 0-1

[Event "*** SCC Grand Prix: Titled Tuesday Blitz"]
[Site "Chess.com"]
[Date "2020.06.09"]
[Round "6"]
[White "Too_Stupid_To_Play"]
[Black "reniite"]
[Result "0-1"]
[WhiteElo "2253"]
[BlackElo "1837"]
[TimeControl "180+1"]
[EndTime "10:06:26 PDT"]
[Termination "reniite won on time"]

1. Nf3 {[%clk 0:03:00.9]} 1... Nf6 {[%clk 0:02:58.6]} 2. c4 {[%clk 0:03:00.6]}
2... e6 {[%clk 0:02:56.1]} 3. b3 {[%clk 0:02:59.5]} 3... d6 {[%clk 0:02:52.5]}
4. Bb2 {[%clk 0:02:59.6]} 4... Be7 {[%clk 0:02:50.1]} 5. g3 {[%clk 0:02:59.4]}
5... O-O {[%clk 0:02:46.2]} 6. Bg2 {[%clk 0:03:00.3]} 6... c5 {[%clk 0:01:55.1]}
7. O-O {[%clk 0:03:01.2]} 7... Nc6 {[%clk 0:01:51.3]} 8. d4 {[%clk 0:03:01.5]}
8... cxd4 {[%clk 0:01:50.8]} 9. Nxd4 {[%clk 0:03:02.4]} 9... Bd7 {[%clk
0:01:50.7]} 10. Nc3 {[%clk 0:03:00.9]} 10... a6 {[%clk 0:01:50]} 11. Rc1 {[%clk
0:03:00.1]} 11... Rc8 {[%clk 0:01:50.3]} 12. e4 {[%clk 0:02:59]} 12... Re8
{[%clk 0:01:49.1]} 13. Re1 {[%clk 0:02:58.3]} 13... Qb6 {[%clk 0:01:48.4]} 14.
Na4 {[%clk 0:02:31.4]} 14... Qa5 {[%clk 0:01:38.1]} 15. Bc3 {[%clk 0:02:29.5]}
15... Qc7 {[%clk 0:01:36.1]} 16. Nb2 {[%clk 0:02:18.6]} 16... Nxd4 {[%clk
0:01:32.2]} 17. Qxd4 {[%clk 0:02:12.5]} 17... b5 {[%clk 0:01:32.7]} 18. Bb4
{[%clk 0:02:04]} 18... Qb8 {[%clk 0:01:16.4]} 19. Red1 {[%clk 0:02:03.9]} 19...
bxc4 {[%clk 0:01:01.9]} 20. Rxc4 {[%clk 0:01:51.2]} 20... Rxc4 {[%clk
0:00:59.6]} 21. Qxc4 {[%clk 0:01:51.4]} 21... Bb5 {[%clk 0:01:00.2]} 22. Qd4
{[%clk 0:01:49.3]} 22... Rd8 {[%clk 0:01:00.6]} 23. Ba5 {[%clk 0:01:46.7]} 23...
Rc8 {[%clk 0:00:59.8]} 24. Bb4 {[%clk 0:01:40.6]} 24... Be2 {[%clk 0:00:57.6]}
25. Re1 {[%clk 0:01:34.6]} 25... Rc2 {[%clk 0:00:56.8]} 26. Bc3 {[%clk 0:01:15]}
26... Qc7 {[%clk 0:00:54.9]} 27. Nc4 {[%clk 0:01:06.2]} 27... Bxc4 {[%clk
0:00:53.2]} 28. bxc4 {[%clk 0:01:06.7]} 28... Rxa2 {[%clk 0:00:52.6]} 29. g4
{[%clk 0:00:54.5]} 29... Qc5 {[%clk 0:00:52.3]} 30. g5 {[%clk 0:00:39.8]} 30...
Qxd4 {[%clk 0:00:51.5]} 31. Bxd4 {[%clk 0:00:40.7]} 31... Nd7 {[%clk 0:00:51.6]}
32. h4 {[%clk 0:00:38.7]} 32... Nc5 {[%clk 0:00:49.8]} 33. Rb1 {[%clk
0:00:30.1]} 33... f6 {[%clk 0:00:46.6]} 34. gxf6 {[%clk 0:00:15.8]} 34... gxf6
{[%clk 0:00:45.9]} 35. Rb6 {[%clk 0:00:04.5]} 35... Kf7 {[%clk 0:00:43.9]} 36.
Bh3 {[%clk 0:00:03.3]} 36... Nxe4 {[%clk 0:00:43]} 0-1

[Event "*** SCC Grand Prix: Titled Tuesday Blitz"]
[Site "Chess.com"]
[Date "2020.06.09"]
[Round "6"]
[White "Nyzhnyk_Illia"]
[Black "Biranidun"]
[Result "1-0"]
[WhiteElo "2896"]
[BlackElo "2728"]
[TimeControl "180+1"]
[EndTime "10:06:27 PDT"]
[Termination "Nyzhnyk_Illia won by resignation"]

1. d4 {[%clk 0:03:00.9]} 1... Nf6 {[%clk 0:02:40.4]} 2. Nf3 {[%clk 0:03:01.8]}
2... g6 {[%clk 0:02:29.5]} 3. g3 {[%clk 0:03:01]} 3... Bg7 {[%clk 0:02:29.8]} 4.
Bg2 {[%clk 0:03:01.5]} 4... O-O {[%clk 0:02:30.4]} 5. O-O {[%clk 0:03:02]} 5...
d6 {[%clk 0:02:31]} 6. c4 {[%clk 0:03:02.2]} 6... Nbd7 {[%clk 0:02:31.7]} 7. Nc3
{[%clk 0:03:02.4]} 7... e5 {[%clk 0:02:32.6]} 8. e3 {[%clk 0:03:02.3]} 8... Re8
{[%clk 0:02:31.9]} 9. b3 {[%clk 0:03:02.3]} 9... e4 {[%clk 0:02:32.3]} 10. Nd2
{[%clk 0:03:01.8]} 10... c6 {[%clk 0:02:26.8]} 11. Ndxe4 {[%clk 0:03:01.2]}
11... Nxe4 {[%clk 0:02:26]} 12. Nxe4 {[%clk 0:03:02.1]} 12... Nf6 {[%clk
0:02:24.8]} 13. Nxf6+ {[%clk 0:03:00.9]} 13... Bxf6 {[%clk 0:02:23.4]} 14. e4
{[%clk 0:03:00.9]} 14... c5 {[%clk 0:02:20.2]} 15. Bb2 {[%clk 0:03:00.9]} 15...
cxd4 {[%clk 0:01:38.7]} 16. Bxd4 {[%clk 0:03:00.2]} 16... Qe7 {[%clk 0:01:38.8]}
17. Bxf6 {[%clk 0:02:59.5]} 17... Qxf6 {[%clk 0:01:38.5]} 18. Qd2 {[%clk
0:02:59.8]} 18... Bd7 {[%clk 0:01:29.3]} 19. Rad1 {[%clk 0:02:58.8]} 19... Bc6
{[%clk 0:01:28.9]} 20. Qxd6 {[%clk 0:02:52.8]} 20... Qxd6 {[%clk 0:01:20.1]} 21.
Rxd6 {[%clk 0:02:53.7]} 21... Bxe4 {[%clk 0:01:20.8]} 22. Rfd1 {[%clk
0:02:52.9]} 22... Bxg2 {[%clk 0:01:16.8]} 23. Kxg2 {[%clk 0:02:52.9]} 23... Re7
{[%clk 0:01:17.5]} 24. Rd7 {[%clk 0:02:52.6]} 24... Rae8 {[%clk 0:01:17.3]} 25.
Kf3 {[%clk 0:02:52.7]} 25... Kg7 {[%clk 0:01:16.8]} 26. R1d6 {[%clk 0:02:51.3]}
26... h5 {[%clk 0:01:09.4]} 27. h4 {[%clk 0:02:50.6]} 27... Kf8 {[%clk
0:00:19.7]} 28. a4 {[%clk 0:02:48.7]} 28... a6 {[%clk 0:00:11.2]} 29. Rxe7
{[%clk 0:02:38.6]} 29... Rxe7 {[%clk 0:00:11.3]} 30. Rd8+ {[%clk 0:02:35.8]}
30... Kg7 {[%clk 0:00:11.5]} 31. a5 {[%clk 0:02:33.5]} 31... Kf6 {[%clk
0:00:08.4]} 32. b4 {[%clk 0:02:27]} 32... Ke5 {[%clk 0:00:06]} 33. Rd5+ {[%clk
0:02:18.9]} 33... Ke6 {[%clk 0:00:04.6]} 34. Ke4 {[%clk 0:02:19]} 34... Rc7
{[%clk 0:00:03.3]} 35. Kd4 {[%clk 0:02:19.3]} 35... Kf6 {[%clk 0:00:02.1]} 36.
f3 {[%clk 0:02:15.1]} 36... Ke6 {[%clk 0:00:02.4]} 37. g4 {[%clk 0:02:15.4]}
37... hxg4 {[%clk 0:00:01.6]} 38. fxg4 {[%clk 0:02:16.3]} 38... Kf6 {[%clk
0:00:02]} 39. c5 {[%clk 0:02:10.7]} 39... Ke6 {[%clk 0:00:02.2]} 40. Rd6+ {[%clk
0:02:07.9]} 40... Ke7 {[%clk 0:00:02.6]} 41. h5 {[%clk 0:02:06.4]} 41... gxh5
{[%clk 0:00:02.6]} 42. gxh5 {[%clk 0:02:07.3]} 42... Rc8 {[%clk 0:00:03.2]} 43.
Ke5 {[%clk 0:02:04.8]} 43... Rg8 {[%clk 0:00:02.4]} 44. Rb6 {[%clk 0:02:00.6]}
44... Rg5+ {[%clk 0:00:02.5]} 45. Kf4 {[%clk 0:02:01.3]} 45... Rxh5 {[%clk
0:00:03.4]} 46. Rxb7+ {[%clk 0:02:01.9]} 46... Ke6 {[%clk 0:00:03.7]} 47. Rb6+
{[%clk 0:01:57.4]} 47... Kd5 {[%clk 0:00:04]} 48. c6 {[%clk 0:01:45.9]} 48...
Kd6 {[%clk 0:00:02.2]} 49. Ke4 {[%clk 0:01:40.6]} 49... Rh4+ {[%clk 0:00:02.3]}
50. Kf5 {[%clk 0:01:39.6]} 50... Kc7 {[%clk 0:00:01.4]} 51. Ke5 {[%clk 0:01:29]}
51... Rc4 {[%clk 0:00:01.9]} 52. Kd5 {[%clk 0:01:29.3]} 52... Rf4 {[%clk
0:00:02]} 53. Rb7+ {[%clk 0:01:28.9]} 53... Kc8 {[%clk 0:00:02.5]} 54. Kc5
{[%clk 0:01:28]} 54... Rf5+ {[%clk 0:00:02.7]} 55. Kb6 {[%clk 0:01:27]} 55...
Rf6 {[%clk 0:00:02.7]} 56. b5 {[%clk 0:01:26.8]} 56... axb5 {[%clk 0:00:02.7]}
57. a6 {[%clk 0:01:26.9]} 57... Rf1 {[%clk 0:00:03.6]} 58. a7 {[%clk 0:01:26.7]}
1-0

[Event "*** SCC Grand Prix: Titled Tuesday Blitz"]
[Site "Chess.com"]
[Date "2020.06.09"]
[Round "6"]
[White "witcher8"]
[Black "aNaartjieZA"]
[Result "0-1"]
[WhiteElo "2413"]
[BlackElo "2583"]
[TimeControl "180+1"]
[EndTime "10:06:29 PDT"]
[Termination "aNaartjieZA won on time"]

1. e4 {[%clk 0:03:00.9]} 1... e6 {[%clk 0:02:59.9]} 2. d4 {[%clk 0:03:00.6]}
2... d5 {[%clk 0:03:00.5]} 3. Nc3 {[%clk 0:03:01.5]} 3... Bb4 {[%clk 0:03:00]}
4. e5 {[%clk 0:03:01.4]} 4... c5 {[%clk 0:03:00.1]} 5. a3 {[%clk 0:03:00.4]}
5... Bxc3+ {[%clk 0:03:00.2]} 6. bxc3 {[%clk 0:03:01.3]} 6... Ne7 {[%clk
0:03:00.8]} 7. Qg4 {[%clk 0:03:00.4]} 7... Qc7 {[%clk 0:03:01.1]} 8. Qxg7 {[%clk
0:02:55.3]} 8... Rg8 {[%clk 0:03:01.1]} 9. Qxh7 {[%clk 0:02:55.5]} 9... cxd4
{[%clk 0:03:01.6]} 10. Ne2 {[%clk 0:02:54]} 10... Nbc6 {[%clk 0:02:58.6]} 11. f4
{[%clk 0:02:44.7]} 11... dxc3 {[%clk 0:02:57.1]} 12. Qd3 {[%clk 0:02:38.9]}
12... d4 {[%clk 0:02:56.8]} 13. h4 {[%clk 0:02:31.2]} 13... Bd7 {[%clk
0:02:55.4]} 14. h5 {[%clk 0:02:27.7]} 14... O-O-O {[%clk 0:02:55.3]} 15. h6
{[%clk 0:02:19.1]} 15... Kb8 {[%clk 0:02:54.8]} 16. h7 {[%clk 0:02:18.4]} 16...
Rh8 {[%clk 0:02:54.9]} 17. g4 {[%clk 0:02:09.1]} 17... Ng6 {[%clk 0:02:53.8]}
18. Bg2 {[%clk 0:01:55.7]} 18... Bc8 {[%clk 0:02:53.4]} 19. Qe4 {[%clk
0:01:39.3]} 19... Qe7 {[%clk 0:02:22.5]} 20. Rb1 {[%clk 0:01:34.3]} 20... Kc7
{[%clk 0:02:22.4]} 21. Rh3 {[%clk 0:01:19.9]} 21... Qc5 {[%clk 0:02:00.9]} 22.
a4 {[%clk 0:00:46.4]} 22... a6 {[%clk 0:01:59.8]} 23. Rb3 {[%clk 0:00:44.8]}
23... Qa5 {[%clk 0:01:32.1]} 24. Ba3 {[%clk 0:00:41.6]} 24... Qxa4 {[%clk
0:01:26.9]} 25. Bd6+ {[%clk 0:00:41.5]} 25... Kd7 {[%clk 0:01:25]} 26. f5 {[%clk
0:00:35.4]} 26... Nge7 {[%clk 0:01:24.6]} 27. Nxc3 {[%clk 0:00:14.5]} 27... Qa1+
{[%clk 0:01:23]} 28. Rb1 {[%clk 0:00:12.8]} 28... Qa5 {[%clk 0:01:18.7]} 29. Kf1
{[%clk 0:00:06.8]} 29... dxc3 {[%clk 0:01:17.9]} 30. Rd3 {[%clk 0:00:06.6]}
30... Ke8 {[%clk 0:01:09.4]} 31. fxe6 {[%clk 0:00:07]} 31... Bxe6 {[%clk
0:01:07.4]} 32. Kg1 {[%clk 0:00:06.7]} 32... Qa2 {[%clk 0:01:02.8]} 33. Rxb7
{[%clk 0:00:05.9]} 33... Qxc2 {[%clk 0:01:01]} 34. Rc7 {[%clk 0:00:01.3]} 34...
Qc1+ {[%clk 0:01:00.1]} 35. Kh2 {[%clk 0:00:01]} 35... c2 {[%clk 0:00:44.8]} 0-1

[Event "*** SCC Grand Prix: Titled Tuesday Blitz"]
[Site "Chess.com"]
[Date "2020.06.09"]
[Round "6"]
[White "Aradej"]
[Black "Lovinski"]
[Result "1-0"]
[WhiteElo "2489"]
[BlackElo "2352"]
[TimeControl "180+1"]
[EndTime "10:06:30 PDT"]
[Termination "Aradej won by resignation"]

1. d4 {[%clk 0:02:04.9]} 1... d5 {[%clk 0:02:58.3]} 2. Nf3 {[%clk 0:02:04.8]}
2... e6 {[%clk 0:02:58.5]} 3. e3 {[%clk 0:02:05.2]} 3... Nf6 {[%clk 0:02:57.4]}
4. Bd3 {[%clk 0:02:05.6]} 4... Be7 {[%clk 0:02:57.8]} 5. O-O {[%clk 0:02:05.7]}
5... O-O {[%clk 0:02:58.2]} 6. Nbd2 {[%clk 0:02:06.1]} 6... b6 {[%clk
0:02:58.6]} 7. Qe2 {[%clk 0:02:05.4]} 7... a5 {[%clk 0:02:58.4]} 8. e4 {[%clk
0:02:04.8]} 8... Ba6 {[%clk 0:02:57.1]} 9. e5 {[%clk 0:02:04.9]} 9... Nfd7
{[%clk 0:02:42.6]} 10. Bxa6 {[%clk 0:02:02.3]} 10... Nxa6 {[%clk 0:02:43.5]} 11.
c3 {[%clk 0:02:02.2]} 11... c5 {[%clk 0:02:42]} 12. Re1 {[%clk 0:02:02]} 12...
cxd4 {[%clk 0:02:40.2]} 13. Nxd4 {[%clk 0:02:02]} 13... Nac5 {[%clk 0:02:22.1]}
14. N2f3 {[%clk 0:01:57.7]} 14... Rc8 {[%clk 0:02:21.4]} 15. Nb5 {[%clk
0:01:54.3]} 15... Ne4 {[%clk 0:02:16.6]} 16. Be3 {[%clk 0:01:51.8]} 16... Bc5
{[%clk 0:02:10.4]} 17. Bd4 {[%clk 0:01:51.7]} 17... Bxd4 {[%clk 0:02:04.7]} 18.
Nfxd4 {[%clk 0:01:51.5]} 18... Qg5 {[%clk 0:01:37.7]} 19. f3 {[%clk 0:01:49.7]}
19... Nec5 {[%clk 0:01:37.1]} 20. Rad1 {[%clk 0:01:43.8]} 20... Qf4 {[%clk
0:01:15.6]} 21. g3 {[%clk 0:01:39.5]} 21... Qh6 {[%clk 0:01:09.4]} 22. Kg2
{[%clk 0:01:39.3]} 22... Nb8 {[%clk 0:01:03.8]} 23. Nd6 {[%clk 0:01:32.4]} 23...
Rc7 {[%clk 0:00:57]} 24. f4 {[%clk 0:01:31.3]} 24... Nc6 {[%clk 0:00:53.3]} 25.
N4b5 {[%clk 0:01:31.2]} 25... Rd7 {[%clk 0:00:48.3]} 26. h4 {[%clk 0:01:30.6]}
26... f6 {[%clk 0:00:40.3]} 27. exf6 {[%clk 0:01:11.3]} 27... Qxf6 {[%clk
0:00:41.2]} 28. c4 {[%clk 0:01:05.1]} 28... d4 {[%clk 0:00:27.8]} 29. Ne4 {[%clk
0:01:01.2]} 29... Qf5 {[%clk 0:00:19.1]} 30. Nxc5 {[%clk 0:00:59.4]} 30... bxc5
{[%clk 0:00:20]} 31. Qxe6+ {[%clk 0:00:59.1]} 31... Qxe6 {[%clk 0:00:20.9]} 32.
Rxe6 {[%clk 0:00:58.9]} 32... Ne7 {[%clk 0:00:18.5]} 33. Rde1 {[%clk 0:00:48.4]}
33... Ng6 {[%clk 0:00:18.5]} 34. h5 {[%clk 0:00:47.6]} 34... Nxf4+ {[%clk
0:00:15.5]} 35. gxf4 {[%clk 0:00:46.8]} 35... Rxf4 {[%clk 0:00:16.4]} 36. Re8+
{[%clk 0:00:46]} 36... Kf7 {[%clk 0:00:16.9]} 37. R8e5 {[%clk 0:00:45.7]} 37...
Rg4+ {[%clk 0:00:15.1]} 38. Kh3 {[%clk 0:00:43.1]} 38... Rf4 {[%clk 0:00:15.4]}
39. Kg3 {[%clk 0:00:42.4]} 39... Rf6 {[%clk 0:00:15.3]} 40. Rxc5 {[%clk
0:00:42.4]} 40... Rb7 {[%clk 0:00:14.9]} 41. Rd5 {[%clk 0:00:39.8]} 41... a4
{[%clk 0:00:14.4]} 1-0